Workbook

Sheet 表１
A1: 別表１－１ 贈与等報告書の提出件数内訳（各省各庁全体）
I2: (単位：件)
A3: 府省等名 | B3: 金銭、物品等の | D3: 飲食の提供等 | F3: 報酬 ※１ | H3: 合計
B4: 供与 | C4: うち２万 | E4: うち２万 | G4: うち２万 | I4: うち２万
C5: 円超 | E5: 円超 | G5: 円超 | I5: 円超
A6: 会計検査院 | B6: =B77+B148 -> 3 | C6: 1 | D6: 36 | E6: 6 | F6: 25 | G6: 18 | H6: =B6+D6+F6 -> 64 | I6: =C6+E6+G6 -> 25
A7: 内閣官房 | B7: 3 | C7: 0 | D7: 27 | E7: 1 | F7: 25 | G7: 11 | H7: =B7+D7+F7 -> 55 | I7: =C7+E7+G7 -> 12
A8: 内閣法制局 | B8: 0 | C8: 0 | D8: 7 | E8: 0 | F8: 80 | G8: 29 | H8: 87 | I8: 29
A9: 人事院 | B9: 2 | C9: 1 | D9: 5 | E9: 0 | F9: 2 | G9: 1 | H9: 9 | I9: 2
A10: 内閣府 | B10: 5 | C10: 1 | D10: 145 | E10: 4 | F10: 33 | G10: 20 | H10: 183 | I10: 25
A11: 宮内庁 | B11: 0 | C11: 0 | D11: 0 | E11: 0 | F11: 19 | G11: 15 | H11: 19 | I11: 15
A12: 公正取引委員会 | B12: 27 | C12: 13 | D12: 19 | E12: 1 | F12: 16 | G12: 10 | H12: 62 | I12: 24
A13: 国家公安委員会 | B13: 6 | C13: 0 | D13: 23 | E13: 0 | F13: 7 | G13: 7 | H13: 36 | I13: 7
A14: 警察庁 | B14: 7 | C14: 0 | D14: 51 | E14: 3 | F14: 121 | G14: 93 | H14: 179 | I14: 96
A15: 個人情報保護委員会 | B15: 1 | C15: 0 | D15: 1 | E15: 0 | F15: 1 | G15: 1 | H15: 3 | I15: 1
A16: カジノ管理委員会 | B16: 0 | C16: 0 | D16: 3 | E16: 0 | F16: 0 | G16: 0 | H16: =B16+D16+F16 -> 3 | I16: =C16+E16+G16 -> 0
A17: 金融庁 | B17: 14 | C17: 1 | D17: 485 | E17: 100 | F17: 2 | G17: 1 | H17: 501 | I17: 102
A18: 消費者庁 | B18: 0 | C18: 0 | D18: 88 | E18: 3 | F18: 4 | G18: 2 | H18: 92 | I18: 5
A19: こども家庭庁 | B19: =B90+B161 -> 1 | C19: 1 | D19: 0 | E19: 0 | F19: 15 | G19: 10 | H19: =B19+D19+F19 -> 16 | I19: =C19+E19+G19 -> 11
A20: デジタル庁 | B20: =B91+B162 -> 0 | C20: =C91+C162 -> 0 | D20: 14 | E20: 3 | F20: 7 | G20: 6 | H20: =B20+D20+F20 -> 21 | I20: =C20+E20+G20 -> 9
A21: 復興庁 | B21: 0 | C21: 0 | D21: 10 | E21: 3 | F21: 3 | G21: 2 | H21: 13 | I21: 5
A22: 総務省 | B22: 29 | C22: 4 | D22: 455 | E22: 30 | F22: 243 | G22: 201 | H22: 727 | I22: 235
A23: 公害等調整委員会 | B23: 0 | C23: 0 | D23: 0 | E23: 0 | F23: 1 | G23: 1 | H23: 1 | I23: 1
A24: 消防庁 | B24: 0 | C24: 0 | D24: 46 | E24: 6 | F24: 27 | G24: 19 | H24: 73 | I24: 25
A25: 法務省 | B25: 30 | C25: 1 | D25: 281 | E25: 6 | F25: 679 | G25: 393 | H25: 990 | I25: 400
A26: 出入国在留管理庁 | B26: =B97+B168 -> 37 | C26: =C97+C168 -> 0 | D26: 11 | E26: 0 | F26: 6 | G26: 4 | H26: =B26+D26+F26 -> 54 | I26: =C26+E26+G26 -> 4
A27: 公安審査委員会 | B27: 0 | C27: 0 | D27: 0 | E27: 0 | F27: =F98+F169 -> 0 | G27: 0 | H27: =B27+D27+F27 -> 0 | I27: =C27+E27+G27 -> 0
A28: 公安調査庁 | B28: 0 | C28: 0 | D28: 0 | E28: 0 | F28: 7 | G28: 5 | H28: 7 | I28: 5
A29: 外務省 | B29: 143 | C29: 25 | D29: 622 | E29: 66 | F29: 72 | G29: 51 | H29: 837 | I29: 142
A30: 財務省 | B30: 3 | C30: 0 | D30: 758 | E30: 16 | F30: 85 | G30: 69 | H30: 846 | I30: 85
A31: 国税庁 | B31: 43 | C31: 11 | D31: 2671 | E31: 28 | F31: 190 | G31: 168 | H31: 2904 | I31: 207
A32: 文部科学省 | B32: 20 | C32: 6 | D32: 319 | E32: 24 | F32: 536 | G32: 310 | H32: 875 | I32: 340
A33: スポーツ庁 | B33: 9 | C33: 2 | D33: 45 | E33: 13 | F33: 2 | G33: 2 | H33: 56 | I33: 17
A34: 文化庁 | B34: 0 | C34: 0 | D34: 97 | E34: 1 | F34: 57 | G34: 27 | H34: 154 | I34: 28
A35: 厚生労働省 | B35: 7 | C35: 3 | D35: 1581 | E35: 64 | F35: 1034 | G35: 597 | H35: 2622 | I35: 664
A36: 中央労働委員会 | B36: 1 | C36: 0 | D36: 3 | E36: 2 | F36: 1 | G36: 1 | H36: 5 | I36: 3
A37: 農林水産省 | B37: 43 | C37: 2 | D37: 1379 | E37: 232 | F37: 44 | G37: 30 | H37: 1466 | I37: 264
A38: 林野庁 | B38: 0 | C38: 0 | D38: 365 | E38: 4 | F38: 2 | G38: 1 | H38: 367 | I38: 5
A39: 水産庁 | B39: 0 | C39: 0 | D39: 197 | E39: 16 | F39: 0 | G39: 0 | H39: 197 | I39: 16
A40: 経済産業省 | B40: 22 | C40: 6 | D40: 1710 | E40: 89 | F40: 77 | G40: 59 | H40: 1809 | I40: 154
A41: 資源エネルギー庁 | B41: 0 | C41: 0 | D41: 41 | E41: 0 | F41: 0 | G41: 0 | H41: 41 | I41: 0
A42: 特許庁 | B42: 6 | C42: 0 | D42: 178 | E42: 56 | F42: 19 | G42: 13 | H42: 203 | I42: 69
A43: 中小企業庁 | B43: 0 | C43: 0 | D43: 30 | E43: 3 | F43: 0 | G43: 0 | H43: 30 | I43: 3
A44: 国土交通省 | B44: 32 | C44: 0 | D44: 5456 | E44: 184 | F44: 186 | G44: 106 | H44: 5674 | I44: 290
A45: 観光庁 | B45: 1 | C45: 0 | D45: 91 | E45: 11 | F45: 0 | G45: 0 | H45: 92 | I45: 11
A46: 気象庁 | B46: 12 | C46: 4 | D46: 10 | E46: 0 | F46: 18 | G46: 8 | H46: 40 | I46: 12
A47: 運輸安全委員会 | B47: 0 | C47: 0 | D47: 26 | E47: 1 | F47: 0 | G47: 0 | H47: 26 | I47: 1
A48: 海上保安庁 | B48: 4 | C48: 0 | D48: 256 | E48: 9 | F48: 10 | G48: 8 | H48: 270 | I48: 17
A49: 環境省 | B49: 2 | C49: 0 | D49: 210 | E49: 7 | F49: 26 | G49: 18 | H49: 238 | I49: 25
A50: 原子力規制委員会 | B50: 0 | C50: 0 | D50: 3 | E50: 0 | F50: 0 | G50: 0 | H50: 3 | I50: 0
A51: 防衛省 | B51: 0 | C51: 0 | D51: 0 | E51: 0 | F51: 0 | G51: 0 | H51: 0 | I51: 0
A52: 小計① | B52: =SUM(B6:B51) -> 513 | C52: 82 | D52: 17755 | E52: 992 | F52: 3682 | G52: 2317 | H52: 21950 | I52: 3391
A54: 別表１－２ 贈与等報告書の提出件数内訳（行政執行法人全体）
I55: (単位：件)
A56: 行政執行法人名 | B56: 金銭、物品等の | D56: 飲食の提供等 | F56: 報酬 ※１ | H56: 合計
B57: 供与 | C57: うち２万 | E57: うち２万 | G57: うち２万 | I57: うち２万
C58: 円超 | E58: 円超 | G58: 円超 | I58: 円超
A59: 独立行政法人国立公文書館 | B59: =B130+B201 -> 0 | C59: 0 | D59: 0 | E59: 0 | F59: 0 | G59: 0 | H59: =B59+D59+F59 -> 0 | I59: =C59+E59+G59 -> 0
A60: 独立行政法人統計センター | B60: 0 | C60: 0 | D60: 2 | E60: 0 | F60: 0 | G60: 0 | H60: =B60+D60+F60 -> 2 | I60: =C60+E60+G60 -> 0
A61: 独立行政法人造幣局 | B61: 0 | C61: 0 | D61: 0 | E61: 0 | F61: 0 | G61: 0 | H61: 0 | I61: 0
A62: 独立行政法人国立印刷局 | B62: 0 | C62: 0 | D62: 0 | E62: 0 | F62: 0 | G62: 0 | H62: 0 | I62: 0
A63: 独立行政法人農林水産消費安全技術センター | B63: 0 | C63: 0 | D63: 30 | E63: 0 | F63: 0 | G63: 0 | H63: 30 | I63: 0
A64: 独立行政法人製品評価技術基盤機構 | B64: 0 | C64: 0 | D64: 1 | E64: 0 | F64: 0 | G64: 0 | H64: 1 | I64: 0
A65: 独立行政法人駐留軍等労働者労務管理機構 | B65: 0 | C65: 0 | D65: 0 | E65: 0 | F65: 0 | G65: 0 | H65: 0 | I65: 0
A66: 小計② | B66: =SUM(B59:B65) -> 0 | C66: 0 | D66: 33 | E66: 0 | F66: 0 | G66: 0 | H66: 33 | I66: 0
A68: 合計（小計①＋小計②） | B68: =B52+B66 -> 513 | C68: 82 | D68: 17788 | E68: 992 | F68: 3682 | G68: 2317 | H68: 21983 | I68: 3391
A69: 割合 ※２ | B69: =B68/$H68 -> 0.02333621435 | D69: =D68/$H68 -> 0.8091707228 | F69: =F68/$H68 -> 0.1674930628
A70: ※１ 報酬とは、原稿料、講演料等である。 | I70: (贈与等報告書を提出すべき職員に係る報告書の件数に占める割合(％))
A71: ※２ 割合は、小数点第二位を四捨五入しているため合計が100％にはならないことがある。
A72: 別表１－３ 贈与等報告書の提出件数内訳（各省各庁指定職未満）
I73: (単位：件)
A74: 府省等名 | B74: 金銭、物品等の | D74: 飲食の提供等 | F74: 報酬 ※１ | H74: 合計
B75: 供与 | C75: うち２万 | E75: うち２万 | G75: うち２万 | I75: うち２万
C76: 円超 | E76: 円超 | G76: 円超 | I76: 円超
A77: 会計検査院 | B77: 2 | C77: 0 | D77: 17 | E77: 3 | F77: 24 | G77: 18 | H77: =SUM(B77,D77,F77) -> 43 | I77: =SUM(C77,E77,G77) -> 21
A78: 内閣官房 | B78: 2 | C78: 0 | D78: 9 | E78: 1 | F78: 6 | G78: 3 | H78: 17 | I78: 4
A79: 内閣法制局 | B79: 0 | C79: 0 | D79: 0 | E79: 0 | F79: 75 | G79: 24 | H79: 75 | I79: 24
A80: 人事院 | B80: 1 | C80: 1 | D80: 5 | E80: 0 | F80: 0 | G80: 0 | H80: 6 | I80: 1
A81: 内閣府 | B81: 4 | C81: 1 | D81: 104 | E81: 1 | F81: 22 | G81: 15 | H81: 130 | I81: 17
A82: 宮内庁 | B82: 0 | C82: 0 | D82: 0 | E82: 0 | F82: 18 | G82: 14 | H82: 18 | I82: 14
A83: 公正取引委員会 | B83: 21 | C83: 9 | D83: 11 | E83: 1 | F83: 14 | G83: 8 | H83: 46 | I83: 18
A84: 国家公安委員会 | B84: 4 | C84: 0 | D84: 20 | E84: 0 | F84: 6 | G84: 6 | H84: 30 | I84: 6
A85: 警察庁 | B85: 5 | C85: 0 | D85: 37 | E85: 3 | F85: 97 | G85: 72 | H85: =SUM(B85,D85,F85) -> 139 | I85: =SUM(C85,E85,G85) -> 75
A86: 個人情報保護委員会 | B86: 1 | C86: 0 | D86: 1 | E86: 0 | F86: 1 | G86: 1 | H86: 3 | I86: 1
A87: カジノ管理委員会 | B87: 0 | C87: 0 | D87: 3 | E87: 0 | F87: 0 | G87: 0 | H87: =SUM(B87,D87,F87) -> 3 | I87: =SUM(C87,E87,G87) -> 0
A88: 金融庁 | B88: 6 | C88: 1 | D88: 294 | E88: 59 | F88: 2 | G88: 1 | H88: 302 | I88: 61
A89: 消費者庁 | B89: 0 | C89: 0 | D89: 45 | E89: 1 | F89: 4 | G89: 2 | H89: 49 | I89: 3
A90: こども家庭庁 | B90: 1 | C90: 1 | D90: 0 | E90: 0 | F90: 15 | G90: 10 | H90: 16 | I90: 11
A91: デジタル庁 | B91: 0 | C91: 0 | D91: 1 | E91: 0 | F91: 5 | G91: 5 | H91: =SUM(B91,D91,F91) -> 6 | I91: =SUM(C91,E91,G91) -> 5
A92: 復興庁 | B92: 0 | C92: 0 | D92: 5 | E92: 1 | F92: 1 | G92: 0 | H92: 6 | I92: 1
A93: 総務省 | B93: 6 | C93: 1 | D93: 297 | E93: 14 | F93: 233 | G93: 192 | H93: 536 | I93: 207
A94: 公害等調整委員会 | B94: 0 | C94: 0 | D94: 0 | E94: 0 | F94: 1 | G94: 1 | H94: 1 | I94: 1
A95: 消防庁 | B95: 0 | C95: 0 | D95: 30 | E95: 3 | F95: 24 | G95: 16 | H95: 54 | I95: 19
A96: 法務省 | B96: 7 | C96: 0 | D96: 144 | E96: 5 | F96: 421 | G96: 234 | H96: 572 | I96: 239
A97: 出入国在留管理庁 | B97: 17 | C97: 0 | D97: 7 | E97: 0 | F97: 0 | G97: 0 | H97: =SUM(B97,D97,F97) -> 24 | I97: =SUM(C97,E97,G97) -> 0
A98: 公安審査委員会 | B98: 0 | C98: 0 | D98: 0 | E98: 0 | F98: 0 | G98: 0 | H98: =SUM(B98,D98,F98) -> 0 | I98: =SUM(C98,E98,G98) -> 0
A99: 公安調査庁 | B99: 0 | C99: 0 | D99: 0 | E99: 0 | F99: 2 | G99: 1 | H99: 2 | I99: 1
A100: 外務省 | B100: 100 | C100: 16 | D100: 474 | E100: 53 | F100: 64 | G100: 45 | H100: 638 | I100: 114
A101: 財務省 | B101: 0 | C101: 0 | D101: 607 | E101: 13 | F101: 71 | G101: 66 | H101: 678 | I101: 79
A102: 国税庁 | B102: 43 | C102: 11 | D102: 2595 | E102: 23 | F102: 190 | G102: 168 | H102: 2828 | I102: 202
A103: 文部科学省 | B103: 16 | C103: 4 | D103: 220 | E103: 16 | F103: 533 | G103: 309 | H103: 769 | I103: 329
A104: スポーツ庁 | B104: 1 | C104: 0 | D104: 25 | E104: 8 | F104: 0 | G104: 0 | H104: 26 | I104: 8
A105: 文化庁 | B105: 0 | C105: 0 | D105: 82 | E105: 0 | F105: 16 | G105: 10 | H105: 98 | I105: 10
A106: 厚生労働省 | B106: 7 | C106: 3 | D106: 1450 | E106: 51 | F106: 971 | G106: 566 | H106: 2428 | I106: 620
A107: 中央労働委員会 | B107: 1 | C107: 0 | D107: 0 | E107: 0 | F107: 1 | G107: 1 | H107: 2 | I107: 1
A108: 農林水産省 | B108: 19 | C108: 1 | D108: 1048 | E108: 152 | F108: 42 | G108: 28 | H108: 1109 | I108: 181
A109: 林野庁 | B109: 0 | C109: 0 | D109: 302 | E109: 3 | F109: 1 | G109: 0 | H109: 303 | I109: 3
A110: 水産庁 | B110: 0 | C110: 0 | D110: 156 | E110: 10 | F110: 0 | G110: 0 | H110: =SUM(B110,D110,F110) -> 156 | I110: =SUM(C110,E110,G110) -> 10
A111: 経済産業省 | B111: 18 | C111: 6 | D111: 1471 | E111: 67 | F111: 77 | G111: 59 | H111: 1566 | I111: 132
A112: 資源エネルギー庁 | B112: 0 | C112: 0 | D112: 36 | E112: 0 | F112: 0 | G112: 0 | H112: 36 | I112: 0
A113: 特許庁 | B113: 5 | C113: 0 | D113: 119 | E113: 39 | F113: 18 | G113: 12 | H113: 142 | I113: =SUM(C113,E113,G113) -> 51
A114: 中小企業庁 | B114: 0 | C114: 0 | D114: 22 | E114: 2 | F114: 0 | G114: 0 | H114: 22 | I114: 2
A115: 国土交通省 | B115: 24 | C115: 0 | D115: 4604 | E115: 121 | F115: 182 | G115: 105 | H115: 4810 | I115: 226
A116: 観光庁 | B116: 1 | C116: 0 | D116: 62 | E116: 8 | F116: 0 | G116: 0 | H116: 63 | I116: 8
A117: 気象庁 | B117: 12 | C117: 4 | D117: 6 | E117: 0 | F117: 18 | G117: 8 | H117: 36 | I117: 12
A118: 運輸安全委員会 | B118: 0 | C118: 0 | D118: 10 | E118: 0 | F118: 0 | G118: 0 | H118: 10 | I118: 0
A119: 海上保安庁 | B119: 4 | C119: 0 | D119: 201 | E119: 8 | F119: 10 | G119: 8 | H119: 215 | I119: 16
A120: 環境省 | B120: 2 | C120: 0 | D120: 149 | E120: 2 | F120: 25 | G120: 18 | H120: 176 | I120: 20
A121: 原子力規制委員会 | B121: 0 | C121: 0 | D121: 2 | E121: 0 | F121: 0 | G121: 0 | H121: 2 | I121: 0
A122: 防衛省 | B122: 0 | C122: 0 | D122: 0 | E122: 0 | F122: 0 | G122: 0 | H122: 0 | I122: 0
A123: 小計③ | B123: =SUM(B77:B122) -> 330 | C123: 59 | D123: 14671 | E123: 668 | F123: 3190 | G123: 2026 | H123: 18191 | I123: 2753
A125: 別表１－４ 贈与等報告書の提出件数内訳（行政執行法人職員のうち国家公務員倫理法第２条第３項第４号に該当しない者）
I126: (単位：件)
A127: 行政執行法人名 | B127: 金銭、物品等の | D127: 飲食の提供等 | F127: 報酬 ※１ | H127: 合計
B128: 供与 | C128: うち２万 | E128: うち２万 | G128: うち２万 | I128: うち２万
C129: 円超 | E129: 円超 | G129: 円超 | I129: 円超
A130: 独立行政法人国立公文書館 | B130: 0 | C130: 0 | D130: 0 | E130: 0 | F130: 0 | G130: 0 | H130: =SUM(B130,D130,F130) -> 0 | I130: 0
A131: 独立行政法人統計センター | B131: 0 | C131: 0 | D131: 2 | E131: 0 | F131: 0 | G131: 0 | H131: 2 | I131: 0
A132: 独立行政法人造幣局 | B132: 0 | C132: 0 | D132: 0 | E132: 0 | F132: 0 | G132: 0 | H132: 0 | I132: 0
A133: 独立行政法人国立印刷局 | B133: 0 | C133: 0 | D133: 0 | E133: 0 | F133: 0 | G133: 0 | H133: =SUM(B133,D133,F133) -> 0 | I133: 0
A134: 独立行政法人農林水産消費安全技術センター | B134: 0 | C134: 0 | D134: 30 | E134: 0 | F134: 0 | G134: 0 | H134: 30 | I134: 0
A135: 独立行政法人製品評価技術基盤機構 | B135: 0 | C135: 0 | D135: 1 | E135: 0 | F135: 0 | G135: 0 | H135: 1 | I135: 0
A136: 独立行政法人駐留軍等労働者労務管理機構 | B136: 0 | C136: 0 | D136: 0 | E136: 0 | F136: 0 | G136: 0 | H136: 0 | I136: 0
A137: 小計④ | B137: =SUM(B130:B136) -> 0 | C137: 0 | D137: 33 | E137: 0 | F137: 0 | G137: 0 | H137: 33 | I137: 0
A139: 合計（小計③＋小計④） | B139: =B123+B137 -> 330 | C139: 59 | D139: 14704 | E139: 668 | F139: 3190 | G139: 2026 | H139: 18224 | I139: 2753
A140: 割合 ※２ | B140: =B139/$H139 -> 0.01810798946 | D140: =D139/$H139 -> 0.8068481124 | F140: =F139/$H139 -> 0.1750438982
A141: ※１ 報酬とは、原稿料、講演料等である。 | I141: (指定職未満の職員に係る報告書の件数に占める割合(％))
A142: ※２ 割合は、小数点第二位を四捨五入しているため合計が100％にはならないことがある。
A143: 別表１－５ 贈与等報告書の提出件数内訳（各省各庁指定職以上）
I144: (単位：件)
A145: 府省等名 | B145: 金銭、物品等の | D145: 飲食の提供等 | F145: 報酬 ※１ | H145: 合計
B146: 供与 | C146: うち２万 | E146: うち２万 | G146: うち２万 | I146: うち２万
C147: 円超 | E147: 円超 | G147: 円超 | I147: 円超
A148: 会計検査院 | B148: 1 | C148: 1 | D148: 19 | E148: 3 | F148: 1 | G148: 0 | H148: =SUM(B148,D148,F148) -> 21 | I148: =SUM(C148,E148,G148) -> 4
A149: 内閣官房 | B149: 1 | C149: 0 | D149: 18 | E149: 0 | F149: 19 | G149: 8 | H149: =SUM(B149,D149,F149) -> 38 | I149: 8
A150: 内閣法制局 | B150: 0 | C150: 0 | D150: 7 | E150: 0 | F150: 5 | G150: 5 | H150: 12 | I150: 5
A151: 人事院 | B151: 1 | C151: 0 | D151: 0 | E151: 0 | F151: 2 | G151: 1 | H151: 3 | I151: 1
A152: 内閣府 | B152: 1 | C152: 0 | D152: 41 | E152: 3 | F152: 11 | G152: 5 | H152: 53 | I152: 8
A153: 宮内庁 | B153: 0 | C153: 0 | D153: 0 | E153: 0 | F153: 1 | G153: 1 | H153: 1 | I153: 1
A154: 公正取引委員会 | B154: 6 | C154: 4 | D154: 8 | E154: 0 | F154: 2 | G154: 2 | H154: 16 | I154: 6
A155: 国家公安委員会 | B155: 2 | C155: 0 | D155: 3 | E155: 0 | F155: 1 | G155: 1 | H155: 6 | I155: 1
A156: 警察庁 | B156: 2 | C156: 0 | D156: 14 | E156: 0 | F156: 24 | G156: 21 | H156: 40 | I156: 21
A157: 個人情報保護委員会 | B157: 0 | C157: 0 | D157: 0 | E157: 0 | F157: 0 | G157: 0 | H157: 0 | I157: 0
A158: カジノ管理委員会 | B158: 0 | C158: 0 | D158: 0 | E158: 0 | F158: 0 | G158: 0 | H158: =SUM(B158,D158,F158) -> 0 | I158: =SUM(C158,E158,G158) -> 0
A159: 金融庁 | B159: 8 | C159: 0 | D159: 191 | E159: 41 | F159: 0 | G159: 0 | H159: 199 | I159: 41
A160: 消費者庁 | B160: 0 | C160: 0 | D160: 43 | E160: 2 | F160: 0 | G160: 0 | H160: 43 | I160: 2
A161: こども家庭庁 | B161: 0 | C161: 0 | D161: 0 | E161: 0 | F161: 0 | G161: 0 | H161: =SUM(B161,D161,F161) -> 0 | I161: =SUM(C161,E161,G161) -> 0
A162: デジタル庁 | B162: 0 | C162: 0 | D162: 13 | E162: 3 | F162: 2 | G162: 1 | H162: =SUM(B162,D162,F162) -> 15 | I162: =SUM(C162,E162,G162) -> 4
A163: 復興庁 | B163: 0 | C163: 0 | D163: 5 | E163: 2 | F163: 2 | G163: 2 | H163: 7 | I163: 4
A164: 総務省 | B164: 23 | C164: 3 | D164: 158 | E164: 16 | F164: 10 | G164: 9 | H164: 191 | I164: 28
A165: 公害等調整委員会 | B165: 0 | C165: 0 | D165: 0 | E165: 0 | F165: 0 | G165: 0 | H165: 0 | I165: 0
A166: 消防庁 | B166: 0 | C166: 0 | D166: 16 | E166: 3 | F166: 3 | G166: 3 | H166: 19 | I166: 6
A167: 法務省 | B167: 23 | C167: 1 | D167: 137 | E167: 1 | F167: 258 | G167: 159 | H167: 418 | I167: 161
A168: 出入国在留管理庁 | B168: 20 | C168: 0 | D168: 4 | E168: 0 | F168: 6 | G168: 4 | H168: =SUM(B168,D168,F168) -> 30 | I168: =SUM(C168,E168,G168) -> 4
A169: 公安審査委員会 | B169: 0 | C169: 0 | D169: 0 | E169: 0 | F169: 0 | G169: 0 | H169: =SUM(B169,D169,F169) -> 0 | I169: =SUM(C169,E169,G169) -> 0
A170: 公安調査庁 | B170: 0 | C170: 0 | D170: 0 | E170: 0 | F170: 5 | G170: 4 | H170: 5 | I170: 4
A171: 外務省 | B171: 43 | C171: 9 | D171: 148 | E171: 13 | F171: 8 | G171: 6 | H171: =SUM(B171,D171,F171) -> 199 | I171: 28
A172: 財務省 | B172: 3 | C172: 0 | D172: 151 | E172: 3 | F172: 14 | G172: 3 | H172: 168 | I172: 6
A173: 国税庁 | B173: 0 | C173: 0 | D173: 76 | E173: 5 | F173: 0 | G173: 0 | H173: 76 | I173: 5
A174: 文部科学省 | B174: 4 | C174: 2 | D174: 99 | E174: 8 | F174: 3 | G174: 1 | H174: 106 | I174: 11
A175: スポーツ庁 | B175: 8 | C175: 2 | D175: 20 | E175: 5 | F175: 2 | G175: 2 | H175: =SUM(B175,D175,F175) -> 30 | I175: =SUM(C175,E175,G175) -> 9
A176: 文化庁 | B176: 0 | C176: 0 | D176: 15 | E176: 1 | F176: 41 | G176: 17 | H176: =SUM(B176,D176,F176) -> 56 | I176: =SUM(C176,E176,G176) -> 18
A177: 厚生労働省 | B177: 0 | C177: 0 | D177: 131 | E177: 13 | F177: 63 | G177: 31 | H177: 194 | I177: 44
A178: 中央労働委員会 | B178: 0 | C178: 0 | D178: 3 | E178: 2 | F178: 0 | G178: 0 | H178: 3 | I178: 2
A179: 農林水産省 | B179: 24 | C179: 1 | D179: 331 | E179: 80 | F179: 2 | G179: 2 | H179: 357 | I179: 83
A180: 林野庁 | B180: 0 | C180: 0 | D180: 63 | E180: 1 | F180: 1 | G180: 1 | H180: 64 | I180: 2
A181: 水産庁 | B181: 0 | C181: 0 | D181: 41 | E181: 6 | F181: 0 | G181: 0 | H181: 41 | I181: 6
A182: 経済産業省 | B182: 4 | C182: 0 | D182: 239 | E182: 22 | F182: 0 | G182: 0 | H182: 243 | I182: 22
A183: 資源エネルギー庁 | B183: 0 | C183: 0 | D183: 5 | E183: 0 | F183: 0 | G183: 0 | H183: 5 | I183: 0
A184: 特許庁 | B184: 1 | C184: 0 | D184: 59 | E184: 17 | F184: 1 | G184: 1 | H184: 61 | I184: 18
A185: 中小企業庁 | B185: 0 | C185: 0 | D185: 8 | E185: 1 | F185: 0 | G185: 0 | H185: 8 | I185: 1
A186: 国土交通省 | B186: 8 | C186: 0 | D186: 852 | E186: 63 | F186: 4 | G186: 1 | H186: =SUM(B186,D186,F186) -> 864 | I186: =SUM(C186,E186,G186) -> 64
A187: 観光庁 | B187: 0 | C187: 0 | D187: 29 | E187: 3 | F187: 0 | G187: 0 | H187: 29 | I187: 3
A188: 気象庁 | B188: 0 | C188: 0 | D188: 4 | E188: 0 | F188: 0 | G188: 0 | H188: 4 | I188: 0
A189: 運輸安全委員会 | B189: 0 | C189: 0 | D189: 16 | E189: 1 | F189: 0 | G189: 0 | H189: 16 | I189: 1
A190: 海上保安庁 | B190: 0 | C190: 0 | D190: 55 | E190: 1 | F190: 0 | G190: 0 | H190: 55 | I190: 1
A191: 環境省 | B191: 0 | C191: 0 | D191: 61 | E191: 5 | F191: 1 | G191: 0 | H191: 62 | I191: 5
A192: 原子力規制委員会 | B192: 0 | C192: 0 | D192: 1 | E192: 0 | F192: 0 | G192: 0 | H192: 1 | I192: 0
A193: 防衛省 | B193: 0 | C193: 0 | D193: 0 | E193: 0 | F193: 0 | G193: 0 | H193: 0 | I193: 0
A194: 小計⑤ | B194: =SUM(B148:B193) -> 183 | C194: 23 | D194: 3084 | E194: 324 | F194: 492 | G194: 291 | H194: 3759 | I194: 638
A196: 別表１－６ 贈与等報告書の提出件数内訳（行政執行法人職員のうち国家公務員倫理法第２条第３項第４号に該当する者）
I197: (単位：件)
A198: 行政執行法人名 | B198: 金銭、物品等の | D198: 飲食の提供等 | F198: 報酬 ※１ | H198: 合計
B199: 供与 | C199: うち２万 | E199: うち２万 | G199: うち２万 | I199: うち２万
C200: 円超 | E200: 円超 | G200: 円超 | I200: 円超
A201: 独立行政法人国立公文書館 | B201: 0 | C201: 0 | D201: 0 | E201: 0 | F201: 0 | G201: 0 | H201: =SUM(B201,D201,F201) -> 0 | I201: 0
A202: 独立行政法人統計センター | B202: 0 | C202: 0 | D202: 0 | E202: 0 | F202: 0 | G202: 0 | H202: 0 | I202: 0
A203: 独立行政法人造幣局 | B203: 0 | C203: 0 | D203: 0 | E203: 0 | F203: 0 | G203: 0 | H203: 0 | I203: 0
A204: 独立行政法人国立印刷局 | B204: 0 | C204: 0 | D204: 0 | E204: 0 | F204: 0 | G204: 0 | H204: 0 | I204: 0
A205: 独立行政法人農林水産消費安全技術センター | B205: 0 | C205: 0 | D205: 0 | E205: 0 | F205: 0 | G205: 0 | H205: 0 | I205: 0
... 7 more rows

Sheet 表２
A1: 別表２ 株取引等報告書及び所得等報告書の提出件数
C2: (単位：件)
A3: 府省等名 | B3: 株取引等報告書 | C3: 所得等報告書
A5: 会計検査院 | B5: 3 | C5: 17
A6: 内閣官房 | B6: 5 | C6: 48
A7: 内閣法制局 | B7: 1 | C7: 6
A8: 人事院 | B8: 2 | C8: 13
A9: 内閣府 | B9: 4 | C9: 44
A10: 宮内庁 | B10: 1 | C10: 6
A11: 公正取引委員会 | B11: 2 | C11: 10
A12: 国家公安委員会 | B12: 1 | C12: 21
A13: 警察庁 | B13: 5 | C13: 26
A14: 個人情報保護委員会 | B14: 0 | C14: 3
A15: カジノ管理委員会 | B15: 0 | C15: 4
A16: 金融庁 | B16: 2 | C16: 16
A17: 消費者庁 | B17: 1 | C17: 7
A18: こども家庭庁 | B18: 0 | C18: 6
A19: デジタル庁 | B19: 1 | C19: 11
A20: 復興庁 | B20: 0 | C20: 5
A21: 総務省 | B21: 8 | C21: 34
A22: 公害等調整委員会 | B22: 0 | C22: 1
A23: 消防庁 | B23: 0 | C23: 4
A24: 法務省 | B24: 36 | C24: 801
A25: 出入国在留管理庁 | B25: 2 | C25: 7
A26: 公安審査委員会 | B26: 0 | C26: 0
A27: 公安調査庁 | B27: 2 | C27: 8
A28: 外務省 | B28: 8 | C28: 50
A29: 財務省 | B29: 5 | C29: 51
A30: 国税庁 | B30: 1 | C30: 12
A31: 文部科学省 | B31: 2 | C31: 13
A32: スポーツ庁 | B32: 0 | C32: 2
A33: 文化庁 | B33: 1 | C33: 4
A34: 厚生労働省 | B34: 8 | C34: 52
A35: 中央労働委員会 | B35: 0 | C35: 2
A36: 農林水産省 | B36: 3 | C36: 28
A37: 林野庁 | B37: 1 | C37: 5
A38: 水産庁 | B38: 0 | C38: 4
A39: 経済産業省 | B39: 0 | C39: 44
A40: 資源エネルギー庁 | B40: 0 | C40: 7
A41: 特許庁 | B41: 0 | C41: 6
A42: 中小企業庁 | B42: 0 | C42: 5
A43: 国土交通省 | B43: 7 | C43: 65
A44: 観光庁 | B44: 0 | C44: 4
A45: 気象庁 | B45: 4 | C45: 12
A46: 運輸安全委員会 | B46: 1 | C46: 1
A47: 海上保安庁 | B47: 0 | C47: 16
A48: 環境省 | B48: 2 | C48: 19
A49: 原子力規制委員会 | B49: 2 | C49: 9
A50: 防衛省 | B50: 0 | C50: 0
A51: 小計① | B51: =SUM(B5:B50) -> 121 | C51: =SUM(C5:C50) -> 1509
A54: 行政執行法人名 | B54: 株取引等報告書 | C54: 所得等報告書
A56: 独立行政法人国立公文書館 | B56: 0 | C56: 0
A57: 独立行政法人統計センター | B57: 0 | C57: 0
A58: 独立行政法人造幣局 | B58: 0 | C58: 0
A59: 独立行政法人国立印刷局 | B59: 0 | C59: 0
A60: 独立行政法人農林水産消費安全技術センター | B60: 0 | C60: 0
A61: 独立行政法人製品評価技術基盤機構 | B61: 0 | C61: 0
A62: 独立行政法人駐留軍等労働者労務管理機構 | B62: 0 | C62: 0
A63: 小計② | B63: =SUM(B56:B62) -> 0 | C63: =SUM(C56:C62) -> 0
A66: 合計(小計①＋小計②） | B66: =B51+B63 -> 121 | C66: =C51+C63 -> 1509

Sheet 表３
A1: 別表３ 倫理監督官への届出件数
B2: (単位：件)
A3: 府省等名 | B3: 届出件数
A5: 会計検査院 | B5: 0
A6: 内閣官房 | B6: 6
A7: 内閣法制局 | B7: 0
A8: 人事院 | B8: 0
A9: 内閣府 | B9: 10
A10: 宮内庁 | B10: 0
A11: 公正取引委員会 | B11: 0
A12: 国家公安委員会 | B12: 14
A13: 警察庁 | B13: 0
A14: 個人情報保護委員会 | B14: 0
A15: カジノ管理委員会 | B15: 0
A16: 金融庁 | B16: 16
A17: 消費者庁 | B17: 0
A18: こども家庭庁 | B18: 0
A19: デジタル庁 | B19: 2
A20: 復興庁 | B20: 7
A21: 総務省 | B21: 62
A22: 公害等調整委員会 | B22: 0
A23: 消防庁 | B23: 2
A24: 法務省 | B24: 9
A25: 出入国在留管理庁 | B25: 0
A26: 公安審査委員会 | B26: 0
A27: 公安調査庁 | B27: 0
A28: 外務省 | B28: 4
A29: 財務省 | B29: 30
A30: 国税庁 | B30: 118
A31: 文部科学省 | B31: 19
A32: スポーツ庁 | B32: 8
A33: 文化庁 | B33: 8
A34: 厚生労働省 | B34: 47
A35: 中央労働委員会 | B35: 0
A36: 農林水産省 | B36: 321
A37: 林野庁 | B37: 25
A38: 水産庁 | B38: 54
A39: 経済産業省 | B39: 169
A40: 資源エネルギー庁 | B40: 14
A41: 特許庁 | B41: 6
A42: 中小企業庁 | B42: 11
A43: 国土交通省 | B43: 131
A44: 観光庁 | B44: 3
A45: 気象庁 | B45: 0
A46: 運輸安全委員会 | B46: 0
A47: 海上保安庁 | B47: 0
A48: 環境省 | B48: 1
A49: 原子力規制委員会 | B49: 0
A50: 防衛省 | B50: 0
A51: 小計① | B51: =SUM(B5:B50) -> 1097
A54: 行政執行法人名 | B54: 届出件数
A56: 独立行政法人国立公文書館 | B56: 0
A57: 独立行政法人統計センター | B57: 0
A58: 独立行政法人造幣局 | B58: 0
A59: 独立行政法人国立印刷局 | B59: 0
A60: 独立行政法人農林水産消費安全技術センター | B60: 0
A61: 独立行政法人製品評価技術基盤機構 | B61: 0
A62: 独立行政法人駐留軍等労働者労務管理機構 | B62: 0
A63: 小計② | B63: =SUM(B56:B62) -> 0
A66: 合計(小計①＋小計②） | B66: =B51+B63 -> 1097

Sheet 表４
A1: 別表４ 倫理監督官の承認の状況
C2: (単位：件)
A3: 府省等名 | B3: 申請件数 | C3: 承認された件数
A5: 会計検査院 | B5: 0 | C5: 0
A6: 内閣官房 | B6: 0 | C6: 0
A7: 内閣法制局 | B7: 0 | C7: 0
A8: 人事院 | B8: 0 | C8: 0
A9: 内閣府 | B9: 0 | C9: 0
A10: 宮内庁 | B10: 0 | C10: 0
A11: 公正取引委員会 | B11: 0 | C11: 0
A12: 国家公安委員会 | B12: 0 | C12: 0
A13: 警察庁 | B13: 0 | C13: 0
A14: 個人情報保護委員会 | B14: 1 | C14: 1
A15: カジノ管理委員会 | B15: 0 | C15: 0
A16: 金融庁 | B16: 0 | C16: 0
A17: 消費者庁 | B17: 0 | C17: 0
A18: こども家庭庁 | B18: 0 | C18: 0
A19: デジタル庁 | B19: 0 | C19: 0
A20: 復興庁 | B20: 0 | C20: 0
A21: 総務省 | B21: 2 | C21: 2
A22: 公害等調整委員会 | B22: 0 | C22: 0
A23: 消防庁 | B23: 0 | C23: 0
A24: 法務省 | B24: 2 | C24: 2
A25: 出入国在留管理庁 | B25: 0 | C25: 0
A26: 公安審査委員会 | B26: 0 | C26: 0
A27: 公安調査庁 | B27: 0 | C27: 0
A28: 外務省 | B28: 0 | C28: 0
A29: 財務省 | B29: 0 | C29: 0
A30: 国税庁 | B30: 0 | C30: 0
A31: 文部科学省 | B31: 1 | C31: 1
A32: スポーツ庁 | B32: 0 | C32: 0
A33: 文化庁 | B33: 0 | C33: 0
A34: 厚生労働省 | B34: 22 | C34: 22
A35: 中央労働委員会 | B35: 0 | C35: 0
A36: 農林水産省 | B36: 3 | C36: 3
A37: 林野庁 | B37: 0 | C37: 0
A38: 水産庁 | B38: 0 | C38: 0
A39: 経済産業省 | B39: 0 | C39: 0
A40: 資源エネルギー庁 | B40: 0 | C40: 0
A41: 特許庁 | B41: 0 | C41: 0
A42: 中小企業庁 | B42: 0 | C42: 0
A43: 国土交通省 | B43: 6 | C43: 6
A44: 観光庁 | B44: 0 | C44: 0
A45: 気象庁 | B45: 0 | C45: 0
A46: 運輸安全委員会 | B46: 0 | C46: 0
A47: 海上保安庁 | B47: 0 | C47: 0
A48: 環境省 | B48: 0 | C48: 0
A49: 原子力規制委員会 | B49: 0 | C49: 0
A50: 防衛省 | B50: 0 | C50: 0
A51: 小計① | B51: =SUM(B5:B50) -> 37 | C51: =SUM(C5:C50) -> 37
A54: 行政執行法人名 | B54: 申請件数 | C54: 承認された件数
A56: 独立行政法人国立公文書館 | B56: 0 | C56: 0
A57: 独立行政法人統計センター | B57: 0 | C57: 0
A58: 独立行政法人造幣局 | B58: 0 | C58: 0
A59: 独立行政法人国立印刷局 | B59: 0 | C59: 0
A60: 独立行政法人農林水産消費安全技術センター | B60: 0 | C60: 0
A61: 独立行政法人製品評価技術基盤機構 | B61: 0 | C61: 0
A62: 独立行政法人駐留軍等労働者労務管理機構 | B62: 0 | C62: 0
A63: 小計② | B63: =SUM(B56:B62) -> 0 | C63: =SUM(C56:C62) -> 0
A66: 合計(小計①＋小計②） | B66: =B51+B63 -> 37 | C66: =C51+C63 -> 37
